bitfinex-derivatives/quotes_BTCF0:USTF0_20241110
["timestamp","ask_amount","ask_price","bid_price","bid_amount"]
[1731256156370,0.0319954,79743.0,79742.0,0.11816408]
[1731256158079,0.1102,79744.0,79743.0,0.062648]
[1731256158378,0.14257963,79744.0,79743.0,0.423448]
[1731256158674,0.03237963,79744.0,79743.0,0.423448]
[1731256158973,0.1102,79746.0,79743.0,0.44534544]
[1731256159171,0.07085795,79745.0,79744.0,0.062647]
[1731256159477,0.03847837,79750.0,79743.0,0.3608]
[1731256159674,0.03847837,79750.0,79749.0,0.062643]
[1731256159871,0.07130988,79750.0,79749.0,0.14718844]
[1731256160172,0.03847837,79750.0,79749.0,0.14718844]
[1731256160472,0.07144999,79750.0,79749.0,0.14718844]
[1731256161273,0.03847837,79750.0,79749.0,0.14718844]
[1731256161596,0.07152611,79750.0,79749.0,0.14718844]
[1731256162091,0.07152611,79750.0,79749.0,0.062643]
[1731256162279,0.03847837,79750.0,79749.0,0.23173388]
[1731256162481,0.03847837,79750.0,79749.0,0.60789388]
[1731256162681,0.03847837,79750.0,79749.0,0.52334844]
[1731256163581,0.03847837,79750.0,79749.0,0.60789388]
[1731256163780,1e-08,79750.0,79749.0,0.60789388]
[1731256164286,0.1102,79767.0,79766.0,0.06263]
[1731256164483,0.1102,79767.0,79766.0,0.42343]
[1731256165382,0.14353854,79767.0,79766.0,0.42343]
[1731256165582,0.14368882,79767.0,79766.0,0.42343]
[1731256165883,0.14348294,79767.0,79766.0,0.42343]
[1731256166082,0.3608,79784.0,79782.0,0.062617]
[1731256166292,0.19583308,79783.0,79782.0,0.03459519]
[1731256166490,0.14545057,79783.0,79782.0,0.03459519]
[1731256166679,0.03525057,79783.0,79782.0,0.03459519]
[1731256166884,0.14545057,79783.0,79782.0,0.03459519]
[1731256167191,0.14545057,79783.0,79782.0,0.02807566]
[1731256167386,0.27875057,79783.0,79782.0,0.02807566]
[1731256167587,0.3291484,79783.0,79782.0,0.02807566]
[1731256168091,0.7051884,79783.0,79782.0,0.02807566]
[1731256169292,0.36761448,79783.0,79782.0,0.02807566]
[1731256169693,0.76873533,79783.0,79766.0,0.42343]
[1731256169888,0.08454544,79779.0,79778.0,0.06262]
[1731256170189,0.11781601,79779.0,79778.0,0.06262]
[1731256170888,0.11724626,79779.0,79778.0,0.06262]
[1731256172287,0.49328626,79779.0,79778.0,0.06262]
[1731256172588,0.60076626,79779.0,79778.0,0.06262]
[1731256173491,0.22472626,79779.0,79778.0,0.06262]
[1731256175591,0.21075868,79783.0,79782.0,0.062617]
[1731256175780,0.35105269,79783.0,79782.0,0.062617]
[1731256177391,0.31819868,79783.0,79782.0,0.062617]
[1731256179593,0.35131623,79783.0,79782.0,0.062617]
[1731256180491,0.31819868,79783.0,79782.0,0.062617]
[1731256180694,0.38958915,79783.0,79773.0,0.062623]
[1731256180893,0.14036472,79782.0,79773.0,0.062623]
[1731256181090,0.10744,79782.0,79781.0,0.062618]
[1731256181296,0.1403416,79782.0,79781.0,0.062618]
[1731256182192,0.0329016,79782.0,79781.0,0.062618]
[1731256182388,0.1403416,79782.0,79781.0,0.062618]
[1731256182585,0.10744,79782.0,79781.0,0.062618]
[1731256182899,0.1403904,79782.0,79781.0,0.062618]
[1731256183091,0.14041103,79782.0,79781.0,0.062618]
[1731256183283,0.10744,79782.0,79781.0,0.062618]
[1731256183696,0.0330364,79782.0,79781.0,0.062618]
[1731256183894,0.1404764,79782.0,79781.0,0.062618]
[1731256185097,0.10744,79782.0,79781.0,0.062618]
[1731256186893,0.14065242,79782.0,79781.0,0.11806928]
[1731256187099,0.17911467,79782.0,79781.0,0.11806928]
[1731256189094,0.14065242,79782.0,79781.0,0.11806928]
[1731256190597,0.03321242,79782.0,79781.0,0.11806928]
[1731256190801,0.14065242,79782.0,79781.0,0.11806928]
[1731256191096,0.03321242,79782.0,79781.0,0.11806928]
[1731256191799,0.05039783,79783.0,79782.0,0.062617]
[1731256192003,0.1319,79793.0,79792.0,0.062609]
[1731256192190,0.27324633,79793.0,79792.0,0.11806028]
[1731256192398,0.03390633,79793.0,79792.0,0.17351156]
[1731256192804,0.1,79800.0,79792.0,0.11806028]
[1731256193016,0.1,79800.0,79797.0,0.47885628]
[1731256193194,0.03429696,79799.0,79797.0,0.47885628]
[1731256193397,0.03617765,79798.0,79797.0,0.47885628]
[1731256193593,0.03429696,79798.0,79797.0,0.47885628]
[1731256193798,0.05211414,79798.0,79797.0,0.423405]
[1731256194004,0.1,79800.0,79799.0,0.062604]
[1731256194596,0.13428375,79800.0,79799.0,0.062604]
[1731256194905,0.18620387,79800.0,79799.0,0.14704934]
[1731256195408,0.15192012,79800.0,79799.0,0.062604]
[1731256196510,0.18624475,79800.0,79799.0,0.062604]
[1731256196807,0.15192012,79800.0,79799.0,0.062604]
[1731256198002,0.1,79800.0,79798.0,0.08444534]
[1731256198198,0.1,79800.0,79794.0,0.0659]
[1731256198406,0.1,79800.0,79799.0,0.05012594]
[1731256200903,0.17303234,79800.0,79799.0,0.08444534]
[1731256201097,0.17303234,79800.0,79799.0,0.44524534]
[1731256201904,0.17182601,79800.0,79799.0,0.44524534]
[1731256202701,0.17182601,79800.0,79799.0,0.35905688]
[1731256203216,0.17182601,79800.0,79799.0,0.08444534]
[1731256205008,0.17182601,79800.0,79793.0,0.1345223]
[1731256205210,0.18461537,79799.0,79793.0,0.05007696]
[1731256205506,0.07182601,79798.0,79787.0,0.44524534]
[1731256205702,0.07182601,79797.0,79787.0,0.49693967]
[1731256206017,0.07182601,79796.0,79787.0,0.49693967]
[1731256206305,0.07182601,79795.0,79787.0,0.49693967]
[1731256206507,0.07182601,79794.0,79787.0,0.49693967]
[1731256206707,0.07182601,79793.0,79787.0,0.13613967]
[1731256206899,0.07001651,79792.0,79783.0,0.29821658]
[1731256207099,0.11278936,79799.0,79781.0,0.062617]
[1731256207100,0.07001651,79791.0,79788.0,0.08444534]
[1731256207305,0.07001651,79790.0,79788.0,0.08444534]
[1731256207506,0.07001651,79789.0,79788.0,0.08444534]
[1731256208508,0.07001651,79789.0,79788.0,0.44524534]
[1731256209708,0.07001651,79789.0,79788.0,0.50785734]
[1731256210208,0.04598936,79796.0,79788.0,0.68333824]
[1731256210514,0.04598936,79799.0,79797.0,0.062604]
[1731256210709,0.00072,79802.0,79799.0,0.062604]
[1731256210905,0.00072,79802.0,79798.0,0.37596]
[1731256211109,0.00072,79802.0,79796.0,0.0703]
[1731256211307,0.04598936,79808.0,79799.0,0.08444534]
[1731256212009,0.04598936,79808.0,79799.0,0.14704934]
[1731256212311,0.208333,79808.0,79799.0,0.062604]
[1731256212704,0.208333,79808.0,79799.0,0.14704934]
[1731256213315,0.208333,79808.0,79796.0,0.0167869]
[1731256213504,0.04598936,79807.0,79799.0,0.08444534]
[1731256213705,0.04598936,79808.0,79799.0,0.08444534]
[1731256214004,0.04598936,79808.0,79799.0,0.14704934]
[1731256214204,0.071,79814.0,79799.0,0.14704934]
[1731256214205,0.071,79814.0,79799.0,0.54485068]
[1731256214404,0.071,79814.0,79813.0,0.423393]
[1731256214599,0.071,79814.0,79813.0,0.14703834]
[1731256215205,0.1094443,79814.0,79813.0,0.14703834]
[1731256215608,0.1094443,79814.0,79813.0,0.062593]
[1731256216010,0.1094443,79814.0,79810.0,0.05092207]
[1731256216216,0.0384443,79813.0,79808.0,0.062596]
[1731256216914,0.0384443,79813.0,79809.0,0.062595]
[1731256217604,0.0384443,79813.0,79807.0,0.05206536]
[1731256217817,0.0384443,79813.0,79805.0,0.062599]
[1731256218208,0.3608,79811.0,79805.0,0.062599]
[1731256218416,0.11404143,79810.0,79797.0,0.08632494]
[1731256218917,0.0643,79809.0,79807.0,0.062597]
[1731256219216,0.06911957,79808.0,79807.0,0.04142072]
[1731256219412,0.13481957,79808.0,79807.0,0.04142072]
[1731256220419,0.13481957,79808.0,79807.0,0.03740072]
[1731256220917,0.13481957,79808.0,79807.0,0.08444534]
[1731256221307,0.13481957,79808.0,79807.0,0.14704234]
[1731256224115,0.13481957,79808.0,79807.0,0.1981136]
[1731256228119,0.06911957,79808.0,79807.0,0.1981136]
[1731256228319,0.03067527,79808.0,79807.0,0.1981136]
[1731256228920,0.0306718,79808.0,79807.0,0.11366826]
[1731256229109,0.06911486,79808.0,79807.0,0.1981136]
[1731256229314,0.06911603,79808.0,79807.0,0.062597]
[1731256229717,0.03067145,79808.0,79807.0,0.062597]
[1731256229925,0.03844458,79808.0,79798.0,0.08444534]
[1731256230116,0.13421603,79807.0,79805.0,0.062599]
[1731256230318,0.06911603,79806.0,79797.0,0.0018796]
[1731256230516,0.06911603,79806.0,79804.0,0.062599]
[1731256230919,0.06911603,79806.0,79793.0,0.08444534]
[1731256231314,0.11002271,79807.0,79806.0,0.062598]
[1731256231515,0.17915005,79807.0,79806.0,0.062598]
[1731256233111,0.34147928,79807.0,79806.0,0.062598]
[1731256233921,0.17915005,79807.0,79806.0,0.062598]
[1731256234722,0.34147928,79807.0,79806.0,0.062598]
[1731256235112,0.17915005,79807.0,79806.0,0.062598]
[1731256235924,0.17915005,79807.0,79806.0,0.04360903]
[1731256238121,0.17915005,79807.0,79793.0,0.05214737]
[1731256238325,0.11002271,79807.0,79806.0,0.062598]
[1731256238534,0.11002271,79807.0,79789.0,0.08444534]
[1731256238535,0.53995445,79807.0,79789.0,0.08444534]
[1731256238723,0.3608,79798.0,79797.0,0.062605]
[1731256238924,0.06913174,79798.0,79797.0,0.062605]
[1731256239123,0.17165174,79798.0,79797.0,0.062605]
[1731256239727,0.06913174,79798.0,79797.0,0.062605]
[1731256239927,0.06913174,79798.0,79797.0,0.14705034]
[1731256240733,0.0691268,79798.0,79797.0,0.14705034]
[1731256246530,0.0691268,79798.0,79797.0,0.20917556]
[1731256247333,0.0691268,79798.0,79797.0,0.14460212]
[1731256247934,0.0691268,79798.0,79797.0,0.20720712]
[1731256251040,0.0691268,79798.0,79797.0,0.14485558]
[1731256252834,0.1932269,79798.0,79797.0,0.14485558]
[1731256253037,0.1932269,79798.0,79797.0,0.10263997]
[1731256253233,0.16255067,79798.0,79797.0,0.15571178]
[1731256253433,0.0691268,79798.0,79797.0,0.15571178]
[1731256254745,0.03067623,79798.0,79797.0,0.15571178]
[1731256255152,0.19333464,79798.0,79797.0,0.15571178]
[1731256255340,0.1,79807.0,79797.0,0.55351212]
[1731256255544,0.004418,79807.0,79806.0,0.44524534]
[1731256255847,0.004418,79807.0,79806.0,0.50784334]
[1731256256051,0.137,79823.0,79812.0,0.062593]
[1731256256250,0.4978,79823.0,79822.0,0.062586]
[1731256256551,0.137,79823.0,79822.0,0.062586]
[1731256256943,0.23952,79823.0,79822.0,0.062586]
[1731256257144,0.137,79823.0,79822.0,0.062586]
[1731256257348,0.137,79823.0,79813.0,0.3608]
[1731256257549,0.137,79823.0,79818.0,0.08444534]
[1731256257847,0.137,79823.0,79822.0,0.062586]
[1731256260346,0.24351236,79823.0,79814.0,0.04825983]
[1731256260545,0.08335682,79822.0,79821.0,0.062586]
[1731256260743,0.08331682,79822.0,79821.0,0.062586]
[1731256261343,0.03844002,79822.0,79821.0,0.062586]
[1731256262051,0.03844002,79822.0,79821.0,0.423386]
[1731256262456,0.03844002,79822.0,79821.0,0.50783134]
[1731256262753,0.03844002,79822.0,79821.0,0.423386]
[1731256262946,0.06159556,79823.0,79821.0,0.50783134]
[1731256263145,0.03843489,79822.0,79821.0,0.50783134]
[1731256263540,0.16229994,79826.0,79825.0,0.062583]
[1731256263745,0.06909732,79826.0,79821.0,0.44524534]
[1731256264056,0.06909611,79825.0,79821.0,0.44524534]
[1731256264251,0.06909611,79824.0,79822.0,0.062586]
[1731256264452,0.16229994,79834.0,79822.0,0.062586]
[1731256264453,0.06909611,79823.0,79822.0,0.062586]
[1731256264754,0.04490564,79833.0,79822.0,0.840866]
[1731256264949,0.16229994,79836.0,79835.0,0.062575]
[1731256265447,0.16229994,79836.0,79835.0,0.14702034]
[1731256265661,0.04490564,79836.0,79835.0,0.08444534]
[1731256265847,0.27550558,79844.0,79842.0,0.06257]
[1731256266046,0.04490564,79843.0,79842.0,0.06257]
[1731256266253,0.0683,79844.0,79842.0,0.06257]
[1731256267345,0.0683,79844.0,79843.0,0.08444534]
[1731256269754,0.0683,79844.0,79842.0,0.06257]
[1731256270957,0.13049996,79844.0,79839.0,0.48569723]
[1731256271259,0.13049996,79844.0,79841.0,0.06257]
[1731256271856,0.13049996,79844.0,79842.0,0.062569]
[1731256272249,0.03842942,79843.0,79842.0,0.062569]
[1731256272555,0.03065889,79843.0,79842.0,0.062569]
[1731256273050,0.13049996,79844.0,79842.0,0.062569]
[1731256273253,0.03065842,79843.0,79842.0,0.062569]
[1731256274150,0.03065805,79843.0,79842.0,0.062569]
[1731256274355,0.06908544,79843.0,79842.0,0.062569]
[1731256275553,0.06908544,79843.0,79842.0,0.04935859]
[1731256276558,0.17152544,79843.0,79839.0,0.42312523]
[1731256276861,0.3608,79840.0,79838.0,0.12527126]
[1731256277165,0.15104534,79839.0,79832.0,0.062577]
[1731256277362,0.03066373,79838.0,79832.0,0.062577]
[1731256277551,0.03066409,79837.0,79832.0,0.062577]
[1731256277752,0.3608,79840.0,79826.0,0.06299239]
[1731256277753,0.03066409,79836.0,79835.0,0.062575]
[1731256277960,0.10244,79843.0,79841.0,0.06257]
[1731256278264,0.03066154,79842.0,79841.0,0.06257]
[1731256278465,0.03066154,79842.0,79835.0,0.062575]
[1731256278758,0.11510688,79841.0,79830.0,0.3608]
[1731256278961,0.06909521,79840.0,79830.0,0.3608]
[1731256279167,0.3608,79839.0,79832.0,0.062578]
[1731256279358,0.06909521,79838.0,79832.0,0.062578]
[1731256279559,0.06909521,79838.0,79826.0,0.00187897]
[1731256279560,0.08444534,79835.0,79826.0,0.00187897]
[1731256279754,0.3608,79839.0,79826.0,0.00187897]
[1731256279755,0.08444534,79829.0,79826.0,0.00187897]
[1731256279963,0.20929845,79828.0,79826.0,0.00187897]
[1731256280162,0.03066154,79827.0,79826.0,0.00187897]
[1731256280562,0.06909985,79827.0,79826.0,0.00187897]
[1731256281656,0.18511601,79828.0,79826.0,0.00187897]
[1731256281862,0.11401994,79827.0,79826.0,0.06446097]
[1731256282062,0.06910393,79827.0,79826.0,0.06446097]
[1731256282963,0.06910393,79827.0,79826.0,0.00187897]
[1731256283563,0.11401994,79827.0,79826.0,0.00151828]
[1731256285569,0.06910393,79827.0,79826.0,0.00151828]
[1731256286063,0.11401994,79827.0,79826.0,0.00151828]
[1731256286266,0.06910393,79827.0,79826.0,0.00151828]
[1731256286565,0.06910239,79827.0,79826.0,0.00151828]
[1731256286766,0.06910239,79827.0,79826.0,0.06410028]
[1731256286962,0.06910239,79827.0,79826.0,0.14854562]
[1731256288262,0.0306654,79827.0,79826.0,0.14854562]
[1731256288467,0.0306654,79827.0,79826.0,0.06410028]
[1731256291372,0.10244,79836.0,79835.0,0.062575]
[1731256291668,0.1715371,79836.0,79835.0,0.062575]
[1731256292755,0.21644873,79836.0,79835.0,0.062575]
[1731256293465,0.1715371,79836.0,79835.0,0.062575]
[1731256293667,0.1715371,79836.0,79830.0,0.08444534]
[1731256293863,0.1715371,79836.0,79830.0,0.14703075]
[1731256293864,0.0690971,79835.0,79830.0,0.14703075]
[1731256294469,0.0690971,79835.0,79831.0,0.062578]
[1731256294672,0.0690971,79835.0,79832.0,0.062577]
[1731256294867,0.0690971,79835.0,79833.0,0.062577]
[1731256296172,0.06910085,79834.0,79830.0,0.09936106]
[1731256296470,0.06910085,79833.0,79830.0,0.09936106]
[1731256296663,0.06910085,79833.0,79831.0,0.062579]
[1731256297772,0.16229994,79833.0,79831.0,0.062579]
[1731256297970,0.23140079,79833.0,79831.0,0.062579]
[1731256298173,0.1024,79834.0,79831.0,0.062579]
[1731256298174,0.27631311,79832.0,79831.0,0.062579]
[1731256298363,0.23140079,79832.0,79831.0,0.062579]
[1731256298563,0.11401317,79832.0,79831.0,0.062579]
[1731256298772,0.06910085,79832.0,79831.0,0.062579]
[1731256298976,0.03843614,79832.0,79831.0,0.062579]
[1731256299170,0.06910085,79833.0,79831.0,0.062579]
[1731256299368,0.06910085,79832.0,79831.0,0.062579]
[1731256299572,0.06910085,79833.0,79831.0,0.062579]
[1731256299873,0.06910085,79832.0,79831.0,0.062579]
[1731256304072,0.42990085,79832.0,79831.0,0.062579]
[1731256304384,0.11401377,79832.0,79831.0,0.062579]
[1731256304680,0.04491292,79836.0,79835.0,0.062575]
[1731256304881,0.06909908,79836.0,79828.0,0.08444534]
[1731256305081,0.114012,79836.0,79828.0,0.06109943]
[1731256305379,0.114012,79836.0,79826.0,0.00151828]
[1731256305380,0.06909908,79835.0,79833.0,0.062576]
[1731256305573,0.04491292,79836.0,79833.0,0.062576]
[1731256305574,0.06909908,79834.0,79833.0,0.062576]
[1731256305880,0.114012,79836.0,79833.0,0.062576]
[1731256306080,0.06909908,79835.0,79833.0,0.062576]
[1731256306383,0.06909908,79834.0,79833.0,0.062577]
[1731256306885,0.04491292,79836.0,79834.0,0.062576]
[1731256307081,0.0691015,79835.0,79834.0,0.062576]
[1731256310680,0.06910253,79835.0,79834.0,0.062576]
[1731256312283,0.3608,79839.0,79834.0,0.062576]
[1731256312284,0.02505506,79864.0,79854.0,0.06256]
[1731256312582,0.0711,79856.0,79851.0,0.3608]
[1731256313375,0.0711,79856.0,79854.0,0.06256]
[1731256313685,0.0716,79855.0,79854.0,0.06256]
[1731256315881,0.0716,79855.0,79854.0,0.14690988]
[1731256316380,0.42604,79863.0,79862.0,0.062554]
[1731256316581,0.42604,79863.0,79862.0,0.05121853]
[1731256316582,0.53230456,79863.0,79862.0,0.05121853]
[1731256316973,0.17150456,79863.0,79862.0,0.05121853]
[1731256317177,0.16502865,79863.0,79862.0,0.49636841]
[1731256317377,0.10302345,79863.0,79862.0,0.49636841]
[1731256318374,0.03842345,79863.0,79862.0,0.49636841]
[1731256318684,0.03842345,79863.0,79862.0,0.44284641]
[1731256319977,0.03842345,79863.0,79862.0,0.062554]
[1731256320184,0.06907708,79863.0,79862.0,0.062554]
[1731256321489,0.11397212,79863.0,79862.0,0.062554]
[1731256322185,0.06907833,79863.0,79862.0,0.062554]
[1731256322578,0.16214643,79867.0,79866.0,0.062551]
[1731256322783,0.16214643,79867.0,79866.0,0.14690088]
[1731256322983,0.16214643,79867.0,79866.0,0.062551]
[1731256322984,0.04489504,79867.0,79866.0,0.062551]
[1731256323189,0.062551,79867.0,79858.0,0.08434988]
[1731256323387,0.062554,79863.0,79855.0,0.16208413]
[1731256323586,0.0647,79862.0,79855.0,0.16208413]
[1731256323783,0.2246798,79860.0,79855.0,0.16208413]
[1731256324087,0.062558,79857.0,79855.0,0.16208413]
[1731256324285,0.10745304,79857.0,79855.0,0.16208413]
[1731256324682,0.26957584,79857.0,79855.0,0.06819751]
[1731256324992,0.26957584,79857.0,79855.0,0.04572788]
[1731256325685,0.04489504,79856.0,79855.0,0.04572788]
[1731256325891,0.10745304,79857.0,79855.0,0.04572788]
[1731256327393,0.04489504,79857.0,79855.0,0.04572788]
[1731256327583,0.083322,79857.0,79855.0,0.04572788]
[1731256327895,0.14588,79857.0,79855.0,0.04572788]
[1731256328187,0.0384261,79856.0,79855.0,0.04572788]
[1731256328593,0.08332114,79856.0,79855.0,0.04572788]
[1731256330795,0.11398067,79856.0,79855.0,0.04572788]
[1731256331091,0.11398067,79856.0,79838.0,0.062573]
[1731256331394,0.06256,79855.0,79839.0,0.08434988]
[1731256331586,0.062568,79844.0,79839.0,0.14692188]
[1731256331889,0.13468563,79843.0,79841.0,0.062571]
[1731256332199,0.06908563,79842.0,79841.0,0.062571]
[1731256332883,0.06908563,79842.0,79841.0,0.03795062]
[1731256333494,0.1621228,79842.0,79839.0,0.08434988]
[1731256333787,0.23120843,79842.0,79839.0,0.08434988]
[1731256333992,0.1621228,79840.0,79839.0,0.08434988]
[1731256334193,0.23120843,79840.0,79839.0,0.08434988]
[1731256334391,0.29850843,79840.0,79839.0,0.08434988]
[1731256334786,0.18128067,79840.0,79834.0,0.06457318]
[1731256334983,0.062575,79836.0,79834.0,0.00329]
[1731256335187,0.06908563,79835.0,79834.0,0.065866]
[1731256335397,0.13165863,79838.0,79834.0,0.065866]
[1731256335593,0.06908563,79837.0,79834.0,0.00329]
[1731256335794,0.13166063,79836.0,79834.0,0.00329]
[1731256335990,0.06908563,79835.0,79834.0,0.00329]
[1731256336693,0.42988563,79835.0,79834.0,0.00329]
[1731256336899,0.47478067,79835.0,79834.0,0.00329]
[1731256337290,0.63710012,79835.0,79834.0,0.00329]
[1731256337491,0.63711966,79835.0,79834.0,0.00329]
[1731256337903,0.57728021,79835.0,79834.0,0.00329]
[1731256338300,0.57703032,79835.0,79834.0,0.00329]
[1731256340097,0.47455032,79835.0,79834.0,0.065866]
[1731256341504,0.39121674,79835.0,79834.0,0.065866]
[1731256342498,0.39121451,79835.0,79834.0,0.065866]
[1731256342699,0.0306644,79835.0,79834.0,0.065866]
[1731256342995,0.16982,79840.0,79838.0,0.062573]
[1731256343201,0.06909636,79839.0,79838.0,0.062573]
[1731256343388,0.06909636,79839.0,79838.0,0.14692288]
[1731256346700,0.13166836,79839.0,79834.0,0.00329]
[1731256346901,0.062575,79835.0,79834.0,0.00329]
[1731256347610,0.13167625,79835.0,79834.0,0.08763988]
[1731256348204,0.06910125,79835.0,79834.0,0.08763988]
[1731256348508,0.06910125,79835.0,79834.0,0.15021588]
[1731256349415,0.06910125,79835.0,79834.0,0.08763988]
[1731256349796,0.11401445,79835.0,79834.0,0.08763988]
[1731256349996,0.13167625,79835.0,79834.0,0.00329]
[1731256351803,0.062579,79831.0,79829.0,0.06206003]
[1731256352004,0.1122132,79840.0,79828.0,0.14692988]
[1731256352005,0.13168025,79830.0,79828.0,0.14692988]
[1731256352302,0.14170125,79829.0,79828.0,0.14692988]
[1731256352501,0.14170125,79829.0,79828.0,0.21028689]
[1731256354413,0.20428125,79829.0,79828.0,0.21028689]
[1731256355813,0.24919445,79829.0,79828.0,0.21028689]
[1731256356011,0.20428125,79829.0,79828.0,0.21028689]
[1731256356213,0.14170125,79829.0,79828.0,0.21028689]
[1731256356422,0.06910125,79829.0,79828.0,0.21028689]
[1731256356715,0.17194,79840.0,79836.0,0.062574]
[1731256356911,0.17194,79840.0,79828.0,0.06335701]
[1731256356912,0.04491305,79839.0,79828.0,0.06335701]
[1731256357109,0.04491305,79839.0,79838.0,0.14692288]
[1731256357508,0.17194,79840.0,79839.0,0.062572]
[1731256358514,0.21685037,79840.0,79839.0,0.062572]
[1731256359015,0.11221037,79840.0,79839.0,0.062572]
[1731256360009,0.0673,79840.0,79839.0,0.062572]
[1731256360420,0.0673,79840.0,79839.0,0.1248704]
[1731256361722,0.10573392,79840.0,79839.0,0.1248704]
[1731256362113,0.10573392,79840.0,79839.0,0.1247704]
[1731256362821,0.10573392,79840.0,79835.0,0.062575]
[1731256363022,0.03843392,79839.0,79830.0,0.3608]
[1731256363213,0.03843392,79839.0,79838.0,0.14692288]
[1731256364611,0.0690965,79839.0,79838.0,0.14692288]
[1731256365419,0.1316685,79839.0,79838.0,0.08434988]
[1731256366622,0.13166872,79839.0,79838.0,0.08434988]
[1731256368024,0.062576,79835.0,79832.0,0.08434988]
[1731256368228,0.13167372,79834.0,79832.0,0.08434988]
[1731256368536,0.06909672,79833.0,79832.0,0.08434988]
[1731256368717,0.03066288,79833.0,79832.0,0.08434988]
[1731256369023,0.06909672,79833.0,79832.0,0.08434988]
[1731256369223,0.49247372,79833.0,79832.0,0.08434988]
[1731256369428,0.49247372,79833.0,79832.0,0.1344551]
[1731256370719,0.53738605,79833.0,79832.0,0.1344551]
[1731256370920,0.53738605,79833.0,79832.0,0.05010522]
[1731256371825,0.53738605,79833.0,79826.0,0.00161632]
[1731256371826,0.062579,79831.0,79826.0,0.00161632]
[1731256372031,0.062582,79827.0,79826.0,0.00161632]
[1731256372719,0.13167872,79827.0,79826.0,0.00161632]
[1731256373728,0.13167872,79827.0,79826.0,0.00143547]
[1731256374822,0.06909672,79827.0,79826.0,0.00143547]
[1731256375018,0.03843384,79827.0,79826.0,0.00143547]
[1731256375232,0.13167872,79827.0,79826.0,0.00143547]
[1731256376226,0.062593,79813.0,79811.0,0.08434988]
[1731256376429,0.21191836,79812.0,79811.0,0.14599996]
[1731256376616,0.25683069,79812.0,79811.0,0.14599996]
[1731256377126,0.2120164,79812.0,79811.0,0.14599996]
[1731256377429,0.1390164,79812.0,79811.0,0.14599996]
[1731256377724,0.0692164,79812.0,79811.0,0.14599996]
[1731256378531,9.804e-05,79812.0,79811.0,0.08434988]
[1731256380825,0.0721,79820.0,79811.0,0.82102988]
[1731256381027,0.10464,79826.0,79825.0,0.062583]
[1731256381229,0.13530824,79826.0,79825.0,0.062583]
[1731256381426,0.13530824,79826.0,79825.0,0.14693288]
[1731256382526,0.13530741,79826.0,79825.0,0.14693288]
[1731256382725,0.13530741,79826.0,79817.0,0.08434988]
[1731256383026,0.03066741,79825.0,79817.0,0.08434988]
[1731256383232,0.03066741,79825.0,79821.0,0.062586]
[1731256383717,0.09325141,79825.0,79821.0,0.062586]
[1731256383921,0.09325141,79825.0,79822.0,0.062586]
[1731256383922,0.06911067,79824.0,79822.0,0.062586]
[1731256384318,0.10464,79826.0,79811.0,0.3608]
[1731256384319,0.10464,79826.0,79824.0,0.062584]
[1731256384521,0.03066969,79825.0,79824.0,0.062584]
[1731256385030,0.03066969,79825.0,79824.0,0.14693388]
[1731256386530,0.06911052,79825.0,79824.0,0.14693388]
[1731256389629,0.06911045,79825.0,79819.0,0.423387]
[1731256389828,0.073,79828.0,79819.0,0.062587]
[1731256389829,0.062586,79822.0,79819.0,0.062587]
[1731256390035,0.03066969,79821.0,79819.0,0.062587]
[1731256390226,0.03066969,79820.0,79819.0,0.062587]
[1731256390432,0.03844333,79820.0,79819.0,0.062587]
[1731256390627,0.09325769,79820.0,79818.0,0.06361318]
[1731256390823,0.03066988,79819.0,79810.0,0.062595]
[1731256391037,0.062594,79812.0,79809.0,0.3608]
[1731256391238,0.21491416,79811.0,79809.0,0.3608]
[1731256391535,0.06911416,79810.0,79809.0,0.3608]
[1731256392122,0.06911416,79810.0,79808.0,0.062596]
[1731256392529,0.06911416,79810.0,79808.0,0.14694588]
[1731256393129,0.062596,79809.0,79808.0,0.14694588]
[1731256393334,0.09326588,79809.0,79808.0,0.14694588]
[1731256393530,0.06911939,79809.0,79808.0,0.14694588]
[1731256393732,0.04492796,79810.0,79808.0,0.14694588]
[1731256393733,0.06911939,79810.0,79808.0,0.14694588]
[1731256394639,0.06911939,79809.0,79808.0,0.14694688]
[1731256394828,0.07560169,79814.0,79813.0,0.04341966]
[1731256395029,0.0691211,79814.0,79813.0,0.062593]
[1731256397243,0.0691211,79814.0,79813.0,0.14694288]
[1731256398038,0.062596,79809.0,79804.0,0.0626]
[1731256398243,0.1403211,79808.0,79804.0,0.0626]
[1731256398545,0.4299211,79807.0,79804.0,0.0626]
[1731256398742,0.04492796,79806.0,79804.0,0.0626]
[1731256399037,0.0696,79806.0,79805.0,0.08434988]
[1731256399236,0.1387237,79806.0,79805.0,0.08434988]
[1731256400434,0.0691237,79806.0,79805.0,0.08434988]
[1731256400739,0.0691237,79806.0,79805.0,0.14694888]
[1731256401635,0.03067485,79806.0,79805.0,0.14694888]
[1731256406439,0.06912179,79810.0,79805.0,0.14694888]
[1731256406644,0.06912179,79809.0,79807.0,0.062597]
[1731256406844,0.06912179,79808.0,79807.0,0.062597]
[1731256407146,0.39147485,79808.0,79807.0,0.062597]
[1731256407446,0.42992507,79808.0,79798.0,0.06403998]
[1731256407639,0.3608,79799.0,79798.0,0.00187943]
[1731256407844,0.42992507,79799.0,79798.0,0.00187943]
[1731256408045,0.42992507,79799.0,79798.0,0.08622931]
[1731256408445,0.42993232,79799.0,79798.0,0.08622931]
[1731256408746,0.11406503,79799.0,79798.0,0.08622931]
[1731256408948,0.06913232,79799.0,79798.0,0.08622931]
[1731256409146,0.06913232,79799.0,79798.0,0.08434988]
[1731256410252,0.17453232,79799.0,79798.0,0.08434988]
[1731256410443,0.06913232,79799.0,79798.0,0.16869976]
[1731256411247,0.06913232,79799.0,79798.0,0.08434988]
[1731256416757,0.03067868,79799.0,79798.0,0.08434988]
[1731256418362,0.03067868,79799.0,79798.0,0.14695388]
[1731256421962,0.10507868,79799.0,79798.0,0.14695388]
[1731256422158,0.14353031,79799.0,79798.0,0.14695388]
[1731256422366,0.14353031,79799.0,79793.0,0.06258661]
[1731256422570,0.06913031,79798.0,79797.0,0.08434988]
[1731256423766,0.06912917,79798.0,79797.0,0.16869976]
[1731256424767,0.1171291,79800.0,79797.0,0.16869976]
[1731256424768,0.0449291,79800.0,79797.0,0.16869976]
[1731256424967,0.04492826,79807.0,79797.0,0.16869976]
[1731256425165,0.27061201,79811.0,79810.0,0.062595]
[1731256425667,0.2207,79813.0,79812.0,0.062593]
[1731256425871,0.147,79813.0,79812.0,0.062493]
[1731256426265,0.147,79813.0,79812.0,0.14684288]
[1731256426458,0.147,79813.0,79812.0,0.12373763]
[1731256426665,0.147,79813.0,79812.0,0.20808751]